bitfinex-derivatives/quotes_ETHF0:USTF0_20260112
["timestamp","ask_amount","ask_price","bid_price","bid_amount"]
[1768189720238,0.87193902,3157.5,3156.2,1.79]
[1768189720439,0.87193902,3157.4,3156.2,1.79]
[1768189720644,0.87193902,3157.3,3156.2,1.79]
[1768189720845,0.13377758,3157.6,3156.2,1.79]
[1768189721046,0.87192518,3157.5,3156.2,1.79]
[1768189721347,0.87192518,3157.4,3156.2,1.79]
[1768189721547,0.13377758,3157.6,3156.2,1.79]
[1768189721744,0.13377758,3157.4,3155.9,40.9324825]
[1768189721940,0.8718635,3157.3,3156.0,1.8]
[1768189722141,0.13377758,3157.4,3156.0,1.8]
[1768189722447,0.13377758,3157.2,3155.7,0.15866]
[1768189722649,0.13377758,3157.2,3155.8,4.972]
[1768189723849,0.13377758,3157.2,3155.8,5.1044825]
[1768189724150,0.13377758,3157.7,3155.8,5.1044825]
[1768189724350,1.00563424,3157.6,3155.8,5.1044825]
[1768189724544,1.00563424,3157.5,3155.9,1.799]
[1768189724751,0.87185666,3157.4,3155.9,1.799]
[1768189724950,0.87185666,3157.3,3156.0,0.1324825]
[1768189725243,0.87185666,3157.2,3156.0,0.1324825]
[1768189725444,0.13377758,3157.5,3156.0,0.1324825]
[1768189725645,0.87189701,3157.4,3156.0,0.1324825]
[1768189725846,0.87189701,3157.3,3156.0,0.1324825]
[1768189726050,0.87189701,3157.2,3156.0,0.1324825]
[1768189726260,0.13377758,3157.5,3156.0,0.1324825]
[1768189726452,0.87197404,3157.4,3156.0,0.1324825]
[1768189726650,0.87197404,3157.3,3156.0,0.1324825]
[1768189726853,0.87197404,3157.2,3156.0,0.1324825]
[1768189727153,0.13377758,3157.5,3156.0,0.1324825]
[1768189727350,0.87202758,3157.4,3156.3,0.96520591]
[1768189727549,0.87202758,3157.3,3156.3,0.96520591]
[1768189727750,0.87202758,3157.2,3156.3,0.96520591]
[1768189727939,0.13377758,3157.5,3156.3,0.96520591]
[1768189728144,0.87202805,3157.4,3156.3,0.96520591]
[1768189728438,0.87202805,3157.3,3156.3,0.96520591]
[1768189728640,0.87202805,3157.2,3156.3,0.96520591]
[1768189728839,0.13377758,3157.5,3156.3,0.96520591]
[1768189729045,0.87207561,3157.4,3156.3,0.96520591]
[1768189729244,0.87207561,3157.3,3156.3,0.96520591]
[1768189729453,0.87207561,3157.2,3156.3,0.96520591]
[1768189729656,0.13377758,3157.3,3155.9,2.76420591]
[1768189729846,0.87210063,3157.2,3155.9,2.76420591]
[1768189730154,0.87209697,3157.1,3156.0,1.797]
[1768189730351,0.13377758,3157.3,3156.0,1.797]
[1768189730552,0.87209896,3157.2,3156.0,1.797]
[1768189730854,0.13377758,3157.3,3156.1,0.96520591]
[1768189731047,0.87222204,3157.2,3156.1,0.96520591]
[1768189731253,0.87225809,3157.1,3156.0,1.797]
[1768189731446,0.13377758,3157.3,3156.1,0.96520591]
[1768189731646,0.87226413,3157.2,3156.1,0.96520591]
[1768189731855,0.87226413,3157.1,3156.1,0.96520591]
[1768189732056,0.13377758,3157.3,3156.0,1.797]
[1768189732262,0.87237485,3157.2,3156.1,0.96520591]
[1768189732554,0.87237485,3157.1,3156.1,0.96520591]
[1768189732754,0.13377758,3157.3,3156.1,0.96520591]
[1768189732958,0.87239022,3157.2,3156.1,0.96520591]
[1768189733158,0.87239022,3157.1,3156.1,0.96520591]
[1768189733364,0.87239022,3157.0,3156.1,0.96520591]
[1768189733551,0.13377758,3157.3,3156.1,0.96520591]
[1768189733759,0.87257105,3157.2,3156.1,0.96520591]
[1768189733953,0.87257105,3157.1,3156.1,0.96520591]
[1768189734253,0.87257105,3157.0,3156.1,0.96520591]
[1768189734453,0.13377758,3157.3,3156.1,0.96520591]
[1768189734753,0.87250782,3157.2,3156.1,0.96520591]
[1768189734952,0.87250782,3157.1,3156.1,0.96520591]
[1768189735155,0.87231049,3157.0,3156.1,0.96520591]
[1768189735461,0.13377758,3157.3,3155.9,0.96520591]
[1768189735662,0.13377758,3157.1,3155.9,1.796]
[1768189735953,0.86998002,3157.0,3155.7,0.96520591]
[1768189736160,0.13377758,3157.1,3155.8,1.796]
[1768189736355,0.87006474,3157.0,3155.8,1.795]
[1768189736556,0.13377758,3157.1,3155.8,1.795]
[1768189736757,0.87007198,3157.0,3155.8,1.795]
[1768189736960,0.13377758,3157.1,3155.8,1.795]
[1768189737148,0.87008219,3157.0,3155.8,1.795]
[1768189737352,0.13377758,3157.1,3155.8,1.795]
[1768189737549,0.87016963,3157.0,3155.8,1.795]
[1768189737747,0.13377758,3157.1,3155.8,1.795]
[1768189737961,0.87016178,3157.0,3155.8,1.795]
[1768189738155,0.87016655,3156.9,3155.8,1.795]
[1768189738357,0.8701275,3156.8,3155.8,1.795]
[1768189738560,0.96520591,3157.0,3155.8,1.795]
[1768189738762,0.87010274,3156.9,3155.8,1.795]
[1768189739063,0.87010274,3156.8,3155.8,1.795]
[1768189739264,1.09898349,3157.1,3155.8,1.795]
[1768189739564,0.87042865,3157.0,3155.8,1.795]
[1768189739760,0.87042865,3156.9,3155.8,1.795]
[1768189739955,1.09898349,3157.1,3155.8,1.795]
[1768189739956,0.87042865,3156.8,3155.8,1.795]
[1768189740262,1.09898349,3157.1,3155.8,1.795]
[1768189740461,0.87058213,3157.0,3155.8,1.795]
[1768189740658,0.87058213,3156.9,3155.8,1.795]
[1768189740963,0.87058213,3156.8,3155.9,0.96520591]
[1768189741165,1.09898349,3157.1,3155.9,0.96520591]
[1768189741464,0.87057878,3157.0,3155.8,1.795]
[1768189741665,0.87057878,3156.9,3155.9,0.96520591]
[1768189741859,1.09898349,3157.1,3155.9,0.96520591]
[1768189742160,0.87055077,3157.0,3155.8,1.795]
[1768189742361,1.09898349,3157.1,3155.8,1.795]
[1768189742362,0.87055077,3156.9,3155.8,1.795]
[1768189742658,1.09898349,3157.1,3155.8,1.795]
[1768189742964,1.00446831,3157.0,3155.8,1.795]
[1768189743262,0.87069073,3156.9,3155.8,1.795]
[1768189743560,0.13377758,3157.0,3155.8,1.795]
[1768189743762,0.87084383,3156.9,3155.8,1.795]
[1768189743957,0.13377758,3157.0,3155.8,1.795]
[1768189744158,0.87084381,3156.9,3155.8,1.795]
[1768189744370,0.13377758,3157.0,3155.8,1.795]
[1768189744561,0.87086259,3156.9,3155.8,1.795]
[1768189744754,0.13377758,3157.0,3155.8,1.795]
[1768189744955,0.87086097,3156.9,3155.8,1.795]
[1768189745157,0.13377758,3157.0,3155.8,1.795]
[1768189745357,0.87085913,3156.9,3155.8,1.795]
[1768189745657,0.13377758,3157.0,3155.8,1.795]
[1768189745858,0.87085893,3156.9,3155.8,1.795]
[1768189746063,0.13377758,3157.0,3155.8,1.795]
[1768189746263,0.87085909,3156.9,3155.7,2.75820591]
[1768189746466,0.87085909,3156.8,3155.7,2.75820591]
[1768189746668,0.13377758,3157.0,3155.7,2.75820591]
[1768189746867,0.87104273,3156.9,3155.7,2.75820591]
[1768189747067,0.87104273,3156.8,3155.7,2.75820591]
[1768189747368,0.13377758,3157.0,3155.7,2.75820591]
[1768189747565,0.87099811,3156.9,3155.7,2.75820591]
[1768189747754,0.13377758,3157.0,3155.7,2.75820591]
[1768189747958,0.87094344,3156.9,3155.7,2.75820591]
[1768189748167,0.13377758,3157.0,3155.7,2.75820591]
[1768189748366,0.87093075,3156.9,3155.7,2.75820591]
[1768189748570,0.13377758,3157.0,3155.7,2.75820591]
[1768189748866,0.87093184,3156.9,3155.7,2.75820591]
[1768189749168,0.13377758,3157.0,3155.7,2.75820591]
[1768189749362,0.87093676,3156.9,3155.7,2.75820591]
[1768189749563,0.13377758,3157.0,3155.7,2.75820591]
[1768189749761,0.8709359,3156.9,3155.7,2.75820591]
[1768189749962,0.13377758,3157.0,3155.7,2.75820591]
[1768189750162,0.87092572,3156.9,3155.7,2.75820591]
[1768189750368,0.13377758,3157.0,3155.7,2.75820591]
[1768189750562,0.87078162,3156.9,3155.7,2.75820591]
[1768189750763,0.13377758,3157.0,3155.7,2.75820591]
[1768189750962,0.8707431,3156.9,3155.9,0.96520591]
[1768189751163,0.13377758,3157.0,3155.9,0.96520591]
[1768189751371,0.87061752,3156.9,3155.9,0.96520591]
[1768189751669,0.13377758,3157.0,3155.9,0.96520591]
[1768189751863,0.87065612,3156.9,3155.9,0.96520591]
[1768189752064,0.13377758,3157.0,3155.9,0.96520591]
[1768189752270,0.87073064,3156.9,3155.9,0.96520591]
[1768189752567,0.96520591,3157.1,3155.9,0.96520591]
[1768189752770,0.87088479,3157.0,3155.9,0.96520591]
[1768189753066,0.87088479,3156.9,3155.9,0.96520591]
[1768189753370,0.96520591,3157.3,3155.9,0.96520591]
[1768189753571,0.87084336,3157.2,3156.0,0.96520591]
[1768189753769,0.87084336,3157.1,3156.0,0.96520591]
[1768189753968,0.87084336,3157.0,3156.0,0.96520591]
[1768189754169,0.87084336,3156.9,3156.0,0.96520591]
[1768189754470,0.96520591,3157.3,3156.0,0.96520591]
[1768189754772,0.8708293,3157.2,3156.0,0.96520591]
[1768189754971,0.8708293,3157.1,3156.0,0.96520591]
[1768189755162,0.8708293,3157.0,3156.0,0.96520591]
[1768189755364,0.8708293,3156.9,3156.0,0.96520591]
[1768189755562,0.96520591,3157.3,3156.0,0.96520591]
[1768189755759,0.87076079,3157.2,3156.0,0.96520591]
[1768189755959,0.87076079,3157.1,3156.2,0.96520591]
[1768189756263,0.87076079,3157.0,3156.2,0.96520591]
[1768189756465,0.13780121,3157.4,3156.2,0.96520591]
[1768189756466,0.87076079,3156.9,3156.2,0.96520591]
[1768189756773,1.26401757,3157.8,3156.4,0.96520591]
[1768189756975,0.87080313,3157.7,3156.4,0.96520591]
[1768189757173,1.26401757,3157.8,3156.4,0.96520591]
[1768189757174,0.87080313,3157.6,3156.4,0.96520591]
[1768189757371,0.87080313,3157.5,3156.8,0.96520591]
[1768189757674,0.87080313,3157.4,3156.6,0.96520591]
[1768189757871,0.87080313,3157.3,3156.6,0.96520591]
[1768189758072,0.87080313,3157.2,3156.6,0.96520591]
[1768189758271,0.87080313,3157.1,3156.4,1.10894619]
[1768189758472,0.87080313,3157.0,3156.4,1.10894619]
[1768189758672,0.96520591,3157.7,3156.4,1.10894619]
[1768189758876,0.87092087,3157.6,3156.4,1.10894619]
[1768189759173,0.87092087,3157.5,3156.6,0.96520591]
[1768189759375,0.87098973,3157.4,3156.6,0.96520591]
[1768189759567,0.14025166,3157.8,3156.6,0.96520591]
[1768189759568,0.87098973,3157.3,3156.6,0.96520591]
[1768189759768,0.87098973,3157.2,3156.6,0.96520591]
[1768189759971,0.87098973,3157.1,3156.6,0.96520591]
[1768189760170,0.87098973,3157.0,3156.6,0.96520591]
[1768189760371,0.14025166,3157.8,3156.6,0.96520591]
[1768189760569,0.87101608,3157.7,3156.8,0.96520591]
[1768189760770,0.87101608,3157.6,3156.8,0.96520591]
[1768189760979,0.87101608,3157.5,3156.8,0.96520591]
[1768189761285,0.87101608,3157.4,3156.8,0.96520591]
[1768189761479,0.87101608,3157.3,3156.8,0.96520591]
[1768189761775,0.87101608,3157.3,3156.4,0.14374028]
[1768189761776,0.87101608,3157.2,3156.4,0.14374028]
[1768189761977,0.00245045,3157.8,3156.7,0.96520591]
[1768189762281,0.87095722,3157.7,3156.7,0.96520591]
[1768189762480,0.87095722,3157.6,3156.7,0.96520591]
[1768189762677,0.87095722,3157.5,3156.7,0.96520591]
[1768189762978,0.00245045,3157.8,3156.7,0.96520591]
[1768189762979,0.87095722,3157.4,3156.7,0.96520591]
[1768189763179,0.87095722,3157.3,3156.7,0.96520591]
[1768189763378,0.87095722,3157.2,3156.7,0.96520591]
[1768189763568,0.00245045,3157.8,3156.7,0.96520591]
[1768189763772,0.87072148,3157.7,3156.7,0.96520591]
[1768189763974,0.87072148,3157.6,3156.7,0.96520591]
[1768189764281,0.87072148,3157.5,3156.7,0.96520591]
[1768189764481,0.87072148,3157.4,3156.7,0.96520591]
[1768189764682,0.87072148,3157.3,3156.7,0.96520591]
[1768189764881,0.87072148,3157.2,3156.7,0.96520591]
[1768189765083,0.00245045,3157.8,3156.7,0.96520591]
[1768189765381,0.87064206,3157.7,3156.7,0.96520591]
[1768189765579,0.87064206,3157.6,3156.7,0.96520591]
[1768189765883,0.87064206,3157.5,3156.7,0.96520591]
[1768189766181,0.87064206,3157.4,3156.7,0.96520591]
[1768189766381,0.87064206,3157.3,3156.7,0.96520591]
[1768189766582,0.87064206,3157.2,3156.7,0.96520591]
[1768189766782,0.00245045,3157.8,3156.7,0.96520591]
[1768189767081,0.86989627,3157.7,3156.7,0.96520591]
[1768189767283,0.86989627,3157.6,3156.7,0.96520591]
[1768189767481,0.86989627,3157.5,3156.7,0.96520591]
[1768189767683,0.86989627,3157.4,3156.7,0.96520591]
[1768189767882,0.86989627,3157.3,3156.7,0.96520591]
[1768189768076,0.86989627,3157.2,3156.7,0.96520591]
[1768189768283,0.00245045,3157.8,3156.7,0.96520591]
[1768189768479,0.86977782,3157.7,3156.7,0.96520591]
[1768189768677,0.86977782,3157.6,3156.7,0.96520591]
[1768189768876,0.86977782,3157.5,3156.7,0.96520591]
[1768189769079,0.86977782,3157.4,3156.7,0.96520591]
[1768189769280,0.86977782,3157.3,3156.7,0.96520591]
[1768189769477,0.00245045,3157.8,3156.7,0.96520591]
[1768189769682,0.8697491,3157.7,3156.7,0.96520591]
[1768189769979,0.8697491,3157.6,3156.7,0.96520591]
[1768189770181,0.8697491,3157.5,3156.7,0.96520591]
[1768189770381,0.8697491,3157.4,3156.7,0.96520591]
[1768189770583,0.8697491,3157.3,3156.7,0.96520591]
[1768189770783,0.00245045,3157.8,3156.7,0.96520591]
[1768189770982,0.86974495,3157.7,3156.7,0.96520591]
[1768189771183,0.86974495,3157.6,3156.7,0.96520591]
[1768189771383,0.86974495,3157.5,3156.7,0.96520591]
[1768189771588,0.86974495,3157.4,3156.7,0.96520591]
[1768189771789,0.86974495,3157.3,3156.7,0.96520591]
[1768189771981,0.86974495,3157.2,3156.7,0.96520591]
[1768189772177,0.00245045,3157.8,3156.7,0.96520591]
[1768189772383,0.86971219,3157.7,3156.7,0.96520591]
[1768189772578,0.86971219,3157.6,3156.7,0.96520591]
[1768189772785,0.86971219,3157.5,3157.1,0.96520591]
[1768189772988,0.00245045,3157.8,3157.1,0.96520591]
[1768189773291,0.86982127,3157.7,3156.5,1.94474028]
[1768189773491,0.86982127,3157.6,3157.0,0.96520591]
[1768189773691,0.00245045,3157.8,3157.0,0.96520591]
[1768189773888,0.86965482,3157.7,3157.0,0.96520591]
[1768189774092,0.86965482,3157.6,3157.0,0.96520591]
[1768189774395,0.00245045,3157.8,3157.0,0.96520591]
[1768189774690,0.86947053,3157.7,3157.0,0.96520591]
[1768189774989,0.86947053,3157.6,3157.0,0.96520591]
[1768189775190,0.00245045,3157.8,3157.0,0.96520591]
[1768189775496,0.86932412,3157.7,3157.0,0.96520591]
[1768189775689,0.00245045,3157.8,3157.0,0.96520591]
[1768189775994,0.86932532,3157.7,3157.0,0.96520591]
[1768189776196,0.00245045,3157.8,3157.0,0.96520591]
[1768189776394,0.86921002,3157.7,3157.0,0.96520591]
[1768189776595,0.00245045,3157.8,3157.0,0.96520591]
[1768189776790,0.86920852,3157.7,3157.0,0.96520591]
[1768189776991,0.00245045,3157.8,3157.0,0.96520591]
[1768189777293,0.86920929,3157.7,3157.0,0.96520591]
[1768189777488,0.00245045,3157.8,3157.0,0.96520591]
[1768189777689,0.8692279,3157.7,3157.0,0.96520591]
[1768189777889,0.00245045,3157.8,3157.0,0.96520591]
[1768189778090,0.86922973,3157.7,3157.0,0.96520591]
[1768189778290,0.00245045,3157.8,3157.0,0.96520591]
[1768189778589,0.86903489,3157.7,3157.0,0.96520591]
[1768189778802,0.00245045,3157.8,3157.0,0.96520591]
[1768189778987,0.86903546,3157.7,3157.0,0.96520591]
[1768189779187,0.00245045,3157.8,3157.0,0.96520591]
[1768189779388,0.86899125,3157.7,3157.0,0.96520591]
[1768189779591,0.00245045,3157.8,3157.0,0.96520591]
[1768189779793,0.86882039,3157.7,3156.9,0.96520591]
[1768189779988,0.00245045,3157.8,3156.9,0.96520591]
[1768189780297,0.86882394,3157.7,3156.8,0.96520591]
[1768189780595,0.00245045,3157.8,3156.8,0.96520591]
[1768189780796,0.86880956,3157.7,3156.8,0.96520591]
[1768189780996,0.00245045,3157.8,3156.8,0.96520591]
[1768189781199,0.86881121,3157.7,3156.8,0.96520591]
[1768189781500,0.00245045,3157.8,3156.8,0.96520591]
[1768189781699,0.86881672,3157.7,3156.8,0.96520591]
[1768189781889,0.86881907,3157.6,3156.8,0.96520591]
[1768189782089,0.00245045,3157.8,3156.8,0.96520591]
[1768189782290,0.86886641,3157.7,3156.8,0.96520591]
[1768189782496,0.86886641,3157.6,3156.8,0.96520591]
[1768189782697,0.00245045,3157.8,3156.8,0.96520591]
[1768189782995,0.86891958,3157.7,3156.8,0.96520591]
[1768189783198,0.86891958,3157.6,3156.7,0.96520591]
[1768189783500,0.00245045,3157.8,3156.7,0.96520591]
[1768189783690,0.86896613,3157.7,3156.7,0.96520591]
[1768189783890,0.86896613,3157.6,3156.7,0.96520591]
[1768189784094,0.00245045,3157.8,3156.7,0.96520591]
[1768189784293,0.86896615,3157.7,3156.7,0.96520591]
[1768189784607,0.86896615,3157.6,3156.7,0.96520591]
[1768189784904,0.96520591,3157.4,3156.2,1.94157196]
[1768189785092,0.86896615,3157.3,3156.2,1.8]
[1768189785292,0.86896615,3157.2,3156.0,2.76620591]
[1768189785493,0.13622504,3157.3,3156.0,2.76620591]
[1768189785699,0.86896946,3157.2,3156.0,2.76620591]
[1768189785902,0.86896946,3157.1,3156.0,1.801]
[1768189786096,0.13622504,3157.3,3156.0,2.76620591]
[1768189786309,0.86896793,3157.2,3156.0,2.76620591]
[1768189786495,0.86896793,3157.1,3156.0,2.76620591]
[1768189786801,1.97042842,3157.0,3155.8,1.803]
[1768189786998,0.86899747,3156.9,3155.9,0.96520591]
[1768189787196,1.00522251,3156.8,3155.8,1.803]
[1768189787503,1.00522251,3156.7,3155.0,1.26595269]
[1768189787800,0.86877507,3156.6,3155.1,1.805]
[1768189788100,0.13622504,3156.7,3155.1,1.94657196]
[1768189788299,0.86878201,3156.6,3155.1,1.94657196]
[1768189788490,0.13622504,3156.7,3155.1,1.94657196]
[1768189788800,0.8685464,3156.6,3155.1,1.94657196]
[1768189788998,0.13622504,3156.7,3155.1,1.94657196]
[1768189789194,0.86854658,3156.6,3155.1,1.94657196]
[1768189789503,0.86854658,3156.5,3155.1,1.94657196]
[1768189789699,0.13622504,3156.7,3155.1,1.94657196]
[1768189789901,0.86812985,3156.6,3155.5,0.14157196]
[1768189790200,0.13622504,3157.6,3156.2,1.10726269]
[1768189790396,0.13622504,3157.6,3156.2,2.91626269]
[1768189794601,0.13622504,3158.0,3156.3,0.14157196]
[1768189798005,0.13867549,3157.8,3156.3,0.14157196]
[1768189800804,0.00245045,3157.8,3156.3,0.14157196]
[1768189801003,0.25783995,3158.9,3157.2,0.96569073]
[1768189801004,0.13622504,3158.6,3157.2,0.96569073]
[1768189801317,0.13622504,3158.6,3157.0,0.14157196]
[1768189801996,0.8631569,3158.5,3157.0,0.14467971]
[1768189802296,0.99938194,3158.4,3157.0,0.14467971]
[1768189802504,0.8631569,3158.3,3157.0,0.14467971]
[1768189802698,0.8631569,3158.2,3157.0,0.14467971]
[1768189802898,0.8631569,3158.1,3157.0,0.14467971]
[1768189803099,0.8631569,3158.0,3157.0,0.14467971]
[1768189803403,0.8631569,3157.9,3157.0,0.14467971]
[1768189803603,0.13622504,3158.4,3157.0,0.14467971]
[1768189803806,0.86275868,3158.3,3157.0,0.14467971]
[1768189804006,0.86275868,3158.2,3157.0,0.14467971]
[1768189804304,0.86275868,3158.1,3157.0,0.00310775]
[1768189804505,0.86275868,3158.0,3157.0,0.00310775]
[1768189804704,0.86275868,3157.9,3157.0,0.00310775]
[1768189804902,0.13622504,3158.4,3157.0,0.00310775]
[1768189805100,0.14005538,3158.2,3157.0,0.00310775]
[1768189805309,0.14005538,3158.0,3157.0,0.00310775]
[1768189805502,0.14005538,3157.8,3157.0,0.00310775]
[1768189805807,0.86195777,3157.7,3157.0,0.00310775]
[1768189806009,0.86195777,3157.6,3157.0,0.00310775]
[1768189806316,0.86183302,3157.5,3156.0,0.15864]
[1768189806612,0.14005538,3157.8,3156.1,1.811]
[1768189806906,1.00186048,3157.7,3156.1,1.811]
[1768189807102,0.8618051,3157.6,3156.1,1.811]
[1768189807304,0.14005538,3157.5,3156.1,0.00323234]
[1768189807509,0.8618051,3157.4,3156.1,0.00323234]
[1768189807808,1.00186048,3157.4,3156.1,0.00323234]
[1768189808005,0.8618051,3157.3,3156.1,0.00323234]
[1768189808512,0.14005538,3157.8,3156.1,0.1485251]
[1768189808819,0.86206455,3157.7,3156.8,0.96569073]
[1768189809006,0.14005538,3158.2,3156.8,0.96569073]
[1768189809202,0.86219251,3158.1,3156.8,0.96569073]
[1768189809403,0.86219251,3158.0,3156.8,0.96569073]
[1768189809611,0.86219251,3157.9,3156.8,0.96569073]
[1768189809813,0.86219251,3157.8,3156.8,0.96569073]
[1768189810108,0.14005538,3158.2,3156.8,0.96569073]
[1768189810310,0.86220755,3158.1,3156.8,0.96569073]
[1768189810610,0.86220755,3158.0,3156.8,0.96569073]
[1768189810811,0.86220755,3157.9,3156.8,0.96569073]
[1768189811110,0.86220755,3157.8,3156.8,0.96569073]
[1768189811313,0.14005538,3158.2,3156.6,1.94621053]
[1768189811514,0.13862489,3158.0,3156.4,0.96569073]
[1768189811808,1.00068527,3157.9,3156.3,1.809]
[1768189812008,0.86206038,3157.8,3156.4,0.13721053]
[1768189812313,0.86206038,3157.7,3156.4,0.13721053]
[1768189812608,0.86206038,3157.6,3156.4,0.13721053]
[1768189812806,0.13862489,3157.9,3156.4,0.13721053]
[1768189813010,0.86197927,3157.8,3156.4,0.13721053]
[1768189813210,0.86197927,3157.7,3156.4,0.13721053]
[1768189813507,0.86197927,3157.6,3156.4,0.13721053]
[1768189813712,0.13862489,3157.9,3156.4,0.13721053]
[1768189813912,0.86196105,3157.8,3156.4,0.13721053]
[1768189814116,0.86196105,3157.7,3156.4,0.13721053]
[1768189814415,0.13862489,3157.5,3156.1,1.81123234]
[1768189816012,0.13862489,3157.5,3156.1,1.94844287]
[1768189817713,0.86216788,3157.4,3156.1,1.94844287]
[1768189817909,0.13862489,3157.5,3156.1,0.14044287]
[1768189818111,0.86226519,3157.4,3156.1,0.14044287]
[1768189818414,0.13862489,3157.9,3156.1,0.14044287]
[1768189818607,0.86245082,3157.8,3156.2,0.13721053]
[1768189818814,0.86245082,3157.7,3156.2,0.13721053]
[1768189819010,0.86245082,3157.6,3156.2,0.13721053]
[1768189819217,0.86245082,3157.5,3156.2,0.13721053]
[1768189819419,0.86245082,3157.4,3156.2,0.13721053]
[1768189819719,0.13862489,3157.9,3156.2,0.13721053]
[1768189819919,0.8628849,3157.8,3156.2,0.13721053]
[1768189820218,0.8628849,3157.7,3156.2,0.13721053]
[1768189820517,0.8628849,3157.6,3156.2,0.13721053]
[1768189820818,0.8628849,3157.5,3156.2,0.13721053]
[1768189821019,0.8628849,3157.4,3156.1,0.00323234]
[1768189821218,0.13862489,3157.5,3156.1,0.00323234]
[1768189821410,0.86311174,3157.4,3156.1,0.00323234]
[1768189821611,0.13862489,3157.5,3156.1,0.00323234]
[1768189821817,0.86334746,3157.4,3156.1,0.00323234]
[1768189822122,0.13862489,3157.5,3156.1,0.00323234]
[1768189822430,0.86363005,3157.4,3156.1,0.00323234]
[1768189822720,0.13862489,3157.5,3156.1,0.00323234]
[1768189822921,0.86373259,3157.4,3156.1,0.00323234]
[1768189823117,0.13862489,3157.5,3156.1,0.00323234]
[1768189823118,0.13862489,3157.5,3156.1,0.14044287]
[1768189823324,0.86377105,3157.4,3156.1,0.14044287]
[1768189823618,0.13862489,3157.5,3156.1,0.14044287]
[1768189823830,0.86382228,3157.4,3156.1,0.14044287]
[1768189824021,0.13862489,3157.5,3156.1,0.14044287]
[1768189824221,0.86388879,3157.4,3156.1,0.14044287]
[1768189824424,0.13862489,3157.9,3156.1,0.14044287]
[1768189824619,0.86393519,3157.8,3156.1,0.14044287]
[1768189824816,0.86393519,3157.7,3156.1,0.14044287]
[1768189825119,0.86393519,3157.6,3156.1,0.14044287]
[1768189825316,0.86393519,3157.5,3156.1,0.14044287]
[1768189825618,0.86393519,3157.4,3156.1,0.14044287]
[1768189825819,0.13862489,3157.7,3156.1,0.14044287]
[1768189826026,0.86380978,3157.6,3156.1,0.14044287]
[1768189826227,0.86380978,3157.5,3156.1,1.94444287]
[1768189826523,0.86380978,3157.4,3156.1,1.94444287]
[1768189826723,0.13862489,3157.7,3156.1,1.94444287]
[1768189826927,0.86401551,3157.6,3156.1,1.94444287]
[1768189827225,0.86401551,3157.5,3156.1,1.94444287]
[1768189827418,0.86401551,3157.4,3156.1,1.94444287]
[1768189827630,0.13862489,3157.7,3156.2,0.13721053]
[1768189827830,0.86410827,3157.6,3156.2,0.13721053]
[1768189828011,0.86410827,3157.5,3156.2,0.13721053]
[1768189828214,0.86410827,3157.4,3156.2,0.13721053]
[1768189828415,0.13862489,3157.7,3156.2,0.13721053]
[1768189828624,0.86412041,3157.6,3156.2,0.13721053]
[1768189828828,0.86412041,3157.5,3156.2,0.13721053]
[1768189829013,0.86412041,3157.4,3156.2,0.13721053]
[1768189829219,0.13862489,3157.7,3156.2,0.13721053]
[1768189829421,0.86413446,3157.6,3156.2,0.13721053]
[1768189829720,0.86413446,3157.5,3156.2,0.13721053]
[1768189830018,0.86413446,3157.4,3156.2,0.13721053]
[1768189830219,0.13862489,3157.7,3156.2,0.13721053]
[1768189830424,0.86421621,3157.6,3156.2,0.13721053]
[1768189830626,0.86421621,3157.5,3156.2,0.13721053]
[1768189830825,0.86421621,3157.4,3156.2,0.13721053]
[1768189831025,0.13862489,3157.7,3156.2,0.13721053]
[1768189831338,0.86421815,3157.6,3156.2,0.13721053]
[1768189831619,0.86421815,3157.5,3156.2,0.13721053]
[1768189831830,0.86421815,3157.4,3156.2,0.13721053]
[1768189832025,0.86421815,3157.3,3156.1,1.80723234]
[1768189832225,0.86421815,3157.2,3156.1,1.80723234]
[1768189832428,0.13862489,3157.5,3156.1,1.80723234]
[1768189832729,0.86474151,3157.4,3156.1,1.80723234]
[1768189833028,0.86474151,3157.3,3156.1,0.00323234]
[1768189833224,0.86474151,3157.2,3156.1,1.80523234]
[1768189833424,0.86474151,3157.1,3156.1,1.80523234]
[1768189833625,0.86474151,3157.0,3156.1,1.80523234]
[1768189833826,0.13862489,3157.4,3156.1,1.80523234]
[1768189834024,0.86500168,3157.3,3156.1,1.80523234]
[1768189834324,0.86500168,3157.2,3156.1,1.80523234]
[1768189834525,0.86500168,3157.1,3156.1,1.80523234]
[1768189834726,0.86500168,3157.0,3156.1,1.80523234]
[1768189834923,0.13862489,3157.4,3156.1,1.80523234]
[1768189835122,0.86512186,3157.3,3156.1,1.80523234]
[1768189835319,0.86512186,3157.2,3156.1,1.80523234]
[1768189835632,0.86512186,3157.1,3156.1,0.00323234]
[1768189835928,0.86512186,3157.0,3156.1,0.00323234]
[1768189836130,0.13953331,3157.2,3156.1,0.00323234]
[1768189836320,1.00467471,3157.1,3156.1,0.00323234]
[1768189836629,0.8651414,3157.0,3156.1,0.00323234]
[1768189837926,0.13953331,3157.9,3156.2,0.1358722]
[1768189838122,0.86516735,3157.8,3156.2,0.1358722]
[1768189838330,0.86516735,3157.7,3156.2,0.1358722]
[1768189838522,0.86516735,3157.6,3156.2,0.1358722]
[1768189838721,0.86516735,3157.5,3156.2,0.1358722]
[1768189838926,0.86516735,3157.4,3156.2,0.1358722]
[1768189839226,0.86516735,3157.3,3156.2,0.1358722]
[1768189839533,0.86516735,3157.2,3156.2,0.1358722]
[1768189839734,0.13953331,3157.9,3156.2,0.1358722]
[1768189839921,0.86541707,3157.8,3156.2,0.2945122]
[1768189840128,0.86541707,3157.7,3156.3,0.1358722]
[1768189840323,0.86541707,3157.6,3156.5,0.96569073]
[1768189840631,0.86541707,3157.5,3156.5,1.10156293]
[1768189840832,0.86541707,3157.4,3156.5,1.10156293]
[1768189841032,0.13953331,3157.9,3156.5,1.10156293]
[1768189841234,0.86538863,3157.8,3156.5,1.10156293]
[1768189841430,0.86538863,3157.7,3156.6,0.1358722]
[1768189841638,0.86538863,3157.6,3156.6,0.1358722]
[1768189841934,0.13953331,3158.3,3156.6,0.1358722]
[1768189842232,1.0050561,3158.2,3156.6,0.1358722]
[1768189842433,0.86552279,3158.1,3156.6,0.1358722]
[1768189842623,0.86552279,3158.0,3156.6,0.1358722]
[1768189842827,0.86552279,3157.9,3156.6,0.1358722]
[1768189843027,0.86552279,3157.8,3156.6,0.1358722]
[1768189843228,0.13953331,3158.2,3156.6,0.1358722]
[1768189843432,0.86533428,3158.1,3156.6,0.1358722]
[1768189843729,0.86533428,3158.0,3156.6,0.1358722]
[1768189843934,0.86533428,3157.9,3156.6,0.1358722]
[1768189844125,0.86533428,3157.8,3156.6,0.1358722]
[1768189844325,0.13953331,3158.2,3156.6,0.1358722]
[1768189844633,0.86515516,3158.1,3156.6,0.1358722]
[1768189844827,0.86515516,3158.0,3156.6,0.1358722]
[1768189845030,0.86515516,3157.9,3156.6,0.1358722]
[1768189845334,0.86515516,3157.8,3156.6,0.1358722]
[1768189845534,0.13953331,3158.2,3156.6,0.1358722]
[1768189845734,0.86468646,3158.1,3156.6,0.1358722]